[Event "GrandPrix_29.05"]
[Site "Chess.com"]
[Date "2020.05.29"]
[Round "2"]
[White "Karateloru"]
[Black "Vuk2000"]
[Result "1-0"]
[WhiteElo "2151"]
[BlackElo "2139"]
[TimeControl "600+2"]
[EndTime "9:59:11 PDT"]
[Termination "Karateloru won by resignation"]

1. e4 {[%clk 0:10:01.9]} 1... e6 {[%clk 0:10:00.8]} 2. Nf3 {[%clk 0:09:59.6]}
2... d5 {[%clk 0:10:01.9]} 3. Nc3 {[%clk 0:10:00.4]} 3... Nf6 {[%clk 0:09:56.6]}
4. e5 {[%clk 0:09:59.5]} 4... Nfd7 {[%clk 0:09:57.1]} 5. d4 {[%clk 0:10:00.4]}
5... c5 {[%clk 0:09:57.6]} 6. dxc5 {[%clk 0:10:02]} 6... Bxc5 {[%clk 0:09:54.7]}
7. Bd3 {[%clk 0:10:02.3]} 7... Nc6 {[%clk 0:09:54.4]} 8. Bf4 {[%clk 0:10:02]}
8... h6 {[%clk 0:09:21.4]} 9. h4 {[%clk 0:10:01.1]} 9... a6 {[%clk 0:08:59.3]}
10. a3 {[%clk 0:09:32.5]} 10... b5 {[%clk 0:08:59.4]} 11. Qd2 {[%clk 0:08:51.1]}
11... Nd4 {[%clk 0:08:46.5]} 12. Nxd4 {[%clk 0:08:20.9]} 12... Bxd4 {[%clk
0:08:48.4]} 13. Bxb5 {[%clk 0:08:21]} 13... Qb6 {[%clk 0:08:23.1]} 14. Bxd7+
{[%clk 0:08:08.1]} 14... Bxd7 {[%clk 0:08:23.2]} 15. O-O {[%clk 0:08:08.8]}
15... Rc8 {[%clk 0:08:09.9]} 16. Ne2 {[%clk 0:07:59]} 16... Bc5 {[%clk
0:08:01.1]} 17. b4 {[%clk 0:07:44.6]} 17... Be7 {[%clk 0:08:00.9]} 18. g3 {[%clk
0:07:34.5]} 18... Rc4 {[%clk 0:06:16.5]} 19. c3 {[%clk 0:07:24.8]} 19... Qc7
{[%clk 0:06:00.8]} 20. Rfe1 {[%clk 0:07:17]} 20... Bc6 {[%clk 0:04:33.9]} 21.
Nd4 {[%clk 0:06:00.7]} 21... Ba4 {[%clk 0:04:20.3]} 22. Rac1 {[%clk 0:05:45.5]}
22... Kd7 {[%clk 0:04:14.5]} 23. h5 {[%clk 0:05:10.5]} 23... Rc8 {[%clk
0:04:08.7]} 24. Re3 {[%clk 0:05:10.8]} 24... a5 {[%clk 0:04:02.8]} 25. Rd3
{[%clk 0:04:24.6]} 25... axb4 {[%clk 0:03:24]} 26. axb4 {[%clk 0:04:26.5]} 26...
Bxb4 {[%clk 0:03:24.3]} 27. Ra1 {[%clk 0:04:22.2]} 27... Rxd4 {[%clk 0:02:35.2]}
28. Rxa4 {[%clk 0:03:33.3]} 28... Rxd3 {[%clk 0:02:18.5]} 29. Qxd3 {[%clk
0:03:33.8]} 29... Bxc3 {[%clk 0:02:15.4]} 30. Qe3 {[%clk 0:00:43]} 30... Qc6
{[%clk 0:01:52.8]} 31. Ra2 {[%clk 0:00:32.9]} 31... d4 {[%clk 0:01:32.3]} 32.
Qd3 {[%clk 0:00:32.3]} 32... Rb8 {[%clk 0:01:13.5]} 33. Kh2 {[%clk 0:00:27.1]}
33... Rb2 {[%clk 0:00:47.2]} 34. Ra7+ {[%clk 0:00:27.2]} 34... Rb7 {[%clk
0:00:47.1]} 35. Ra6 {[%clk 0:00:27.2]} 35... Rb6 {[%clk 0:00:47.5]} 36. Ra7+
{[%clk 0:00:28.2]} 36... Rb7 {[%clk 0:00:44.4]} 37. Ra6 {[%clk 0:00:28.6]} 37...
Qb5 {[%clk 0:00:33]} 38. Rd6+ {[%clk 0:00:27.1]} 38... Kc7 {[%clk 0:00:28.7]}
39. Qh7 {[%clk 0:00:25.9]} 39... Qe2 {[%clk 0:00:22.6]} 40. Qxg7 {[%clk
0:00:23.5]} 40... Qxh5+ {[%clk 0:00:17.5]} 41. Kg2 {[%clk 0:00:23.8]} 41... Rb1
{[%clk 0:00:18.8]} 42. Qxh6 {[%clk 0:00:17.6]} 42... Qe2 {[%clk 0:00:17.5]} 43.
Qh7 {[%clk 0:00:14.9]} 43... Qf1+ {[%clk 0:00:17]} 44. Kf3 {[%clk 0:00:15.9]}
44... Qd1+ {[%clk 0:00:17.2]} 45. Kg2 {[%clk 0:00:16.9]} 45... Qf1+ {[%clk
0:00:15.2]} 46. Kf3 {[%clk 0:00:17.6]} 46... Qh1+ {[%clk 0:00:12]} 47. Qxh1
{[%clk 0:00:17.8]} 47... Rxh1 {[%clk 0:00:13.9]} 48. Ke2 {[%clk 0:00:18.2]}
48... Rb1 {[%clk 0:00:13.9]} 49. f3 {[%clk 0:00:17.8]} 49... Rb2+ {[%clk
0:00:14.1]} 50. Kd3 {[%clk 0:00:19.1]} 50... Rf2 {[%clk 0:00:15.3]} 51. Ke4
{[%clk 0:00:19.5]} 51... Re2+ {[%clk 0:00:15.9]} 52. Kd3 {[%clk 0:00:20.7]}
52... Rf2 {[%clk 0:00:17.1]} 53. Ke4 {[%clk 0:00:22]} 53... Rf1 {[%clk
0:00:17.2]} 54. g4 {[%clk 0:00:19.3]} 54... Re1+ {[%clk 0:00:11.2]} 55. Kd3
{[%clk 0:00:19.4]} 55... Rf1 {[%clk 0:00:11.2]} 56. Ke2 {[%clk 0:00:20.3]} 56...
Re1+ {[%clk 0:00:10.4]} 57. Kf2 {[%clk 0:00:21.4]} 57... Ra1 {[%clk 0:00:10.5]}
58. Bg5 {[%clk 0:00:16.8]} 58... Ra2+ {[%clk 0:00:08.9]} 59. Kg3 {[%clk
0:00:17.5]} 59... Ra5 {[%clk 0:00:07.6]} 60. Bf4 {[%clk 0:00:16.7]} 60... Ra4
{[%clk 0:00:05.9]} 61. g5 {[%clk 0:00:17]} 61... Bb4 {[%clk 0:00:06.2]} 62. g6
{[%clk 0:00:14]} 62... Bxd6 {[%clk 0:00:04.6]} 63. exd6+ {[%clk 0:00:15]} 63...
Kd7 {[%clk 0:00:05.8]} 64. gxf7 {[%clk 0:00:16.3]} 64... Ra8 {[%clk 0:00:06.9]}
65. Bh6 {[%clk 0:00:17.3]} 65... d3 {[%clk 0:00:08.1]} 66. Kf2 {[%clk
0:00:16.8]} 66... d2 {[%clk 0:00:08.3]} 67. Ke2 {[%clk 0:00:17.6]} 67... d1=Q+
{[%clk 0:00:02.6]} 68. Kxd1 {[%clk 0:00:18.7]} 68... Kxd6 {[%clk 0:00:04.4]} 1-0

[Event "GrandPrix_29.05"]
[Site "Chess.com"]
[Date "2020.05.29"]
[Round "2"]
[White "caspiwins"]
[Black "mishikomchedlishvili"]
[Result "0-1"]
[WhiteElo "1990"]
[BlackElo "1831"]
[TimeControl "600+2"]
[EndTime "9:59:14 PDT"]
[Termination "mishikomchedlishvili won by resignation"]

1. e4 {[%clk 0:09:50.4]} 1... d6 {[%clk 0:09:59.7]} 2. d4 {[%clk 0:09:40.6]}
2... Nf6 {[%clk 0:10:00]} 3. Nc3 {[%clk 0:09:40.7]} 3... g6 {[%clk 0:10:00.9]}
4. Nf3 {[%clk 0:09:36.3]} 4... Bg7 {[%clk 0:10:01.1]} 5. Be2 {[%clk 0:09:37.7]}
5... O-O {[%clk 0:10:01.9]} 6. O-O {[%clk 0:09:39]} 6... e6 {[%clk 0:10:02.5]}
7. Re1 {[%clk 0:09:17.3]} 7... a6 {[%clk 0:09:56.9]} 8. a4 {[%clk 0:09:14.7]}
8... Nc6 {[%clk 0:09:27.6]} 9. a5 {[%clk 0:08:30.7]} 9... e5 {[%clk 0:08:54.7]}
10. d5 {[%clk 0:08:31.4]} 10... Ne7 {[%clk 0:08:54.8]} 11. Be3 {[%clk
0:08:24.2]} 11... Ng4 {[%clk 0:08:45]} 12. Bg5 {[%clk 0:08:24.7]} 12... f5
{[%clk 0:08:31.9]} 13. Nd2 {[%clk 0:08:15.6]} 13... Nf6 {[%clk 0:07:24.3]} 14.
f3 {[%clk 0:08:01.2]} 14... h6 {[%clk 0:07:22.3]} 15. Be3 {[%clk 0:07:53]} 15...
f4 {[%clk 0:07:17.1]} 16. Bf2 {[%clk 0:07:53.8]} 16... g5 {[%clk 0:07:17.3]} 17.
g4 {[%clk 0:07:49.4]} 17... fxg3 {[%clk 0:07:06.3]} 18. hxg3 {[%clk 0:07:50]}
18... h5 {[%clk 0:07:07]} 19. Nc4 {[%clk 0:06:46.2]} 19... Qe8 {[%clk
0:06:29.5]} 20. Qd2 {[%clk 0:06:28.4]} 20... Qg6 {[%clk 0:06:28.4]} 21. Be3
{[%clk 0:06:00]} 21... Bh6 {[%clk 0:05:23.2]} 22. Kg2 {[%clk 0:05:46.2]} 22...
Kg7 {[%clk 0:05:14]} 23. Rh1 {[%clk 0:05:44.5]} 23... Bd7 {[%clk 0:05:11.1]} 24.
Raf1 {[%clk 0:05:44.1]} 24... Rf7 {[%clk 0:05:08.3]} 25. b4 {[%clk 0:05:34.4]}
25... Raf8 {[%clk 0:05:07.1]} 26. Rf2 {[%clk 0:05:00.9]} 26... Neg8 {[%clk
0:05:00.3]} 27. Bd3 {[%clk 0:04:45]} 27... Nh7 {[%clk 0:04:15.3]} 28. Rhf1
{[%clk 0:04:33.1]} 28... Ngf6 {[%clk 0:04:03.1]} 29. Rh1 {[%clk 0:04:14.2]}
29... Ng8 {[%clk 0:03:39.7]} 30. Rhf1 {[%clk 0:04:14.3]} 30... Rf6 {[%clk
0:03:40.6]} 31. Be2 {[%clk 0:03:55.7]} 31... Ne7 {[%clk 0:03:33]} 32. Rh1 {[%clk
0:03:07.4]} 32... Qf7 {[%clk 0:03:33.8]} 33. Rff1 {[%clk 0:02:58.7]} 33... Ng6
{[%clk 0:03:21.3]} 34. Nd1 {[%clk 0:02:21.7]} 34... h4 {[%clk 0:03:20.6]} 35. g4
{[%clk 0:02:14.5]} 35... Qe7 {[%clk 0:03:13]} 36. Kg1 {[%clk 0:01:49.4]} 36...
Kg8 {[%clk 0:03:10.6]} 37. Rf2 {[%clk 0:01:49.4]} 37... R6f7 {[%clk 0:03:03.9]}
38. Qc3 {[%clk 0:01:31.5]} 38... Bg7 {[%clk 0:02:59]} 39. Bd2 {[%clk 0:01:30.1]}
39... Nf4 {[%clk 0:02:57.1]} 40. Bf1 {[%clk 0:01:28.8]} 40... c6 {[%clk
0:02:37.6]} 41. dxc6 {[%clk 0:01:27.6]} 41... bxc6 {[%clk 0:02:24.3]} 42. Nb6
{[%clk 0:01:15.1]} 42... d5 {[%clk 0:02:22.8]} 43. Qc5 {[%clk 0:00:38]} 43...
Qe8 {[%clk 0:02:03.2]} 44. Nxd7 {[%clk 0:00:35.5]} 44... Qxd7 {[%clk 0:01:58.5]}
45. Ne3 {[%clk 0:00:35.7]} 45... Nf6 {[%clk 0:01:46.3]} 46. exd5 {[%clk
0:00:33.8]} 46... cxd5 {[%clk 0:01:42]} 47. Nf5 {[%clk 0:00:34.6]} 47... e4
{[%clk 0:01:41]} 48. Bxf4 {[%clk 0:00:27.4]} 48... gxf4 {[%clk 0:01:40.3]} 49.
Rxh4 {[%clk 0:00:28.3]} 49... exf3 {[%clk 0:01:26.2]} 50. Bd3 {[%clk 0:00:28]}
50... Ne4 {[%clk 0:01:24.6]} 51. Bxe4 {[%clk 0:00:12.1]} 51... dxe4 {[%clk
0:01:25.2]} 52. Qc4 {[%clk 0:00:12.9]} 52... Re8 {[%clk 0:00:55]} 53. Rhh2
{[%clk 0:00:13.6]} 53... Qe6 {[%clk 0:00:45.7]} 54. Qxe6 {[%clk 0:00:11.1]}
54... Rxe6 {[%clk 0:00:46.4]} 55. Rd2 {[%clk 0:00:13]} 55... e3 {[%clk
0:00:38.8]} 56. Rd8+ {[%clk 0:00:12.8]} 56... Bf8 {[%clk 0:00:40]} 57. Kf1
{[%clk 0:00:12.4]} 57... Rc6 {[%clk 0:00:20.4]} 58. Nd4 {[%clk 0:00:13.1]} 58...
Rd6 {[%clk 0:00:19.7]} 59. Rxd6 {[%clk 0:00:12]} 59... Bxd6 {[%clk 0:00:20.5]}
60. c3 {[%clk 0:00:13.5]} 60... Be5 {[%clk 0:00:18.8]} 61. Nxf3 {[%clk 0:00:14]}
61... Bxc3 {[%clk 0:00:19.1]} 62. Ke2 {[%clk 0:00:13.3]} 62... Bxb4 {[%clk
0:00:20.1]} 63. Rh6 {[%clk 0:00:14.8]} 63... Rc7 {[%clk 0:00:20]} 64. Nd4 {[%clk
0:00:13.2]} 64... Rc4 {[%clk 0:00:19.4]} 65. Kd3 {[%clk 0:00:13]} 65... Rc3+
{[%clk 0:00:19.3]} 66. Ke2 {[%clk 0:00:14.2]} 66... Bc5 {[%clk 0:00:20.5]} 67.
Nf3 {[%clk 0:00:10.9]} 67... Rc2+ {[%clk 0:00:21.7]} 68. Kd3 {[%clk 0:00:09.6]}
68... Rf2 {[%clk 0:00:23.2]} 69. Ng1 {[%clk 0:00:06.4]} 69... Rf1 {[%clk
0:00:22.6]} 70. Ne2 {[%clk 0:00:06.9]} 70... f3 {[%clk 0:00:22.9]} 71. Ng3
{[%clk 0:00:08.2]} 71... Rd1+ {[%clk 0:00:23.3]} 72. Ke4 {[%clk 0:00:08.9]}
72... e2 {[%clk 0:00:24.5]} 73. Rg6+ {[%clk 0:00:05.7]} 73... Kf7 {[%clk
0:00:24.4]} 0-1

[Event "GrandPrix_29.05"]
[Site "Chess.com"]
[Date "2020.05.29"]
[Round "2"]
[White "kostasam18"]
[Black "Happy1712Drummer"]
[Result "1-0"]
[WhiteElo "2068"]
[BlackElo "2188"]
[TimeControl "600+2"]
[EndTime "9:59:15 PDT"]
[Termination "kostasam18 won by checkmate"]

1. e4 {[%clk 0:10:01.9]} 1... Nf6 {[%clk 0:09:58.4]} 2. e5 {[%clk 0:09:59.1]}
2... Nd5 {[%clk 0:09:59.2]} 3. d4 {[%clk 0:09:59.7]} 3... d6 {[%clk 0:09:59.5]}
4. c4 {[%clk 0:09:59]} 4... Nb6 {[%clk 0:10:00.1]} 5. exd6 {[%clk 0:10:00.9]}
5... exd6 {[%clk 0:09:59.8]} 6. Nc3 {[%clk 0:10:01.2]} 6... Be7 {[%clk
0:10:00.8]} 7. Bd3 {[%clk 0:09:58.7]} 7... O-O {[%clk 0:09:58]} 8. Nge2 {[%clk
0:09:56.9]} 8... Bg4 {[%clk 0:09:56.9]} 9. f3 {[%clk 0:09:41.6]} 9... Bh5 {[%clk
0:09:56.4]} 10. O-O {[%clk 0:09:31]} 10... Bg6 {[%clk 0:09:50.6]} 11. b3 {[%clk
0:09:01.8]} 11... Nc6 {[%clk 0:09:44.5]} 12. Be3 {[%clk 0:08:56.9]} 12... Bf6
{[%clk 0:09:17.3]} 13. Bxg6 {[%clk 0:08:43.4]} 13... hxg6 {[%clk 0:09:15.8]} 14.
Qd2 {[%clk 0:08:42.5]} 14... Re8 {[%clk 0:09:10.5]} 15. Rad1 {[%clk 0:08:27.6]}
15... d5 {[%clk 0:08:48.6]} 16. c5 {[%clk 0:08:22.5]} 16... Nc8 {[%clk
0:08:47.5]} 17. Nf4 {[%clk 0:07:49.6]} 17... N8e7 {[%clk 0:08:43]} 18. Rfe1
{[%clk 0:07:42.2]} 18... Qd7 {[%clk 0:08:41.1]} 19. a3 {[%clk 0:07:32.5]} 19...
a6 {[%clk 0:08:37.7]} 20. b4 {[%clk 0:07:32.7]} 20... Nf5 {[%clk 0:08:06.9]} 21.
Ncxd5 {[%clk 0:07:18.9]} 21... Bxd4 {[%clk 0:07:49.2]} 22. Bxd4 {[%clk
0:07:09.7]} 22... Nfxd4 {[%clk 0:06:44.9]} 23. Nc3 {[%clk 0:06:40.8]} 23...
Rxe1+ {[%clk 0:06:37.8]} 24. Qxe1 {[%clk 0:06:36.5]} 24... Re8 {[%clk
0:06:36.1]} 25. Qf2 {[%clk 0:06:32.6]} 25... Qe7 {[%clk 0:06:26]} 26. Nfd5
{[%clk 0:06:08.4]} 26... Qg5 {[%clk 0:03:51.1]} 27. Nxc7 {[%clk 0:05:43.5]}
27... Rd8 {[%clk 0:03:29.7]} 28. b5 {[%clk 0:04:05]} 28... axb5 {[%clk
0:03:26.4]} 29. N7xb5 {[%clk 0:03:44.9]} 29... Qxc5 {[%clk 0:03:25.1]} 30. Kh1
{[%clk 0:03:12]} 30... b6 {[%clk 0:02:56.9]} 31. a4 {[%clk 0:03:08.8]} 31... Qb4
{[%clk 0:01:55.1]} 32. Rb1 {[%clk 0:02:46.2]} 32... Nxb5 {[%clk 0:01:36.6]} 33.
Rxb4 {[%clk 0:02:32.8]} 33... Nxc3 {[%clk 0:01:36.7]} 34. Rxb6 {[%clk 0:02:24]}
34... Rd1+ {[%clk 0:01:13.9]} 35. Qg1 {[%clk 0:02:23.2]} 35... Rxg1+ {[%clk
0:01:14.7]} 36. Kxg1 {[%clk 0:02:25.1]} 36... Ne2+ {[%clk 0:01:07.8]} 37. Kf2
{[%clk 0:02:22]} 37... Ned4 {[%clk 0:01:09.7]} 38. Ke3 {[%clk 0:02:12.9]} 38...
Kf8 {[%clk 0:01:08.5]} 39. Ke4 {[%clk 0:02:12.5]} 39... Ke7 {[%clk 0:01:01.5]}
40. Kd5 {[%clk 0:02:10]} 40... Kd7 {[%clk 0:01:01.8]} 41. Rb7+ {[%clk
0:02:08.4]} 41... Kc8 {[%clk 0:00:57.3]} 42. Rxf7 {[%clk 0:02:06.2]} 42... Nd8
{[%clk 0:00:53]} 43. Rxg7 {[%clk 0:01:57]} 43... Nf5 {[%clk 0:00:53.8]} 44. Rh7
{[%clk 0:01:43.2]} 44... Ne3+ {[%clk 0:00:53.1]} 45. Ke5 {[%clk 0:01:26.4]}
45... Nxg2 {[%clk 0:00:54]} 46. Kf6 {[%clk 0:01:25.3]} 46... Ne1 {[%clk
0:00:52.4]} 47. f4 {[%clk 0:01:07.1]} 47... Nd3 {[%clk 0:00:52.4]} 48. Rh4
{[%clk 0:01:01.3]} 48... Nc5 {[%clk 0:00:49.2]} 49. Kxg6 {[%clk 0:00:58.2]}
49... Nxa4 {[%clk 0:00:49.9]} 50. f5 {[%clk 0:00:58.8]} 50... Nc5 {[%clk
0:00:48.6]} 51. f6 {[%clk 0:00:59]} 51... Kd7 {[%clk 0:00:41.5]} 52. Rd4+ {[%clk
0:00:41]} 52... Ke8 {[%clk 0:00:41.8]} 53. h4 {[%clk 0:00:39.4]} 53... Nce6
{[%clk 0:00:40.8]} 54. Re4 {[%clk 0:00:38.4]} 54... Kf8 {[%clk 0:00:35.6]} 55.
h5 {[%clk 0:00:39.3]} 55... Kg8 {[%clk 0:00:36.6]} 56. f7+ {[%clk 0:00:33.4]}
56... Kh8 {[%clk 0:00:04.9]} 57. h6 {[%clk 0:00:27]} 57... Nf8+ {[%clk
0:00:04.1]} 58. Kf6 {[%clk 0:00:25.8]} 58... Kh7 {[%clk 0:00:04.1]} 59. Re8
{[%clk 0:00:18.3]} 59... Nd7+ {[%clk 0:00:04.7]} 60. Ke7 {[%clk 0:00:17.8]}
60... Nxf7 {[%clk 0:00:05.5]} 61. Kxf7 {[%clk 0:00:14.3]} 61... Nb6 {[%clk
0:00:06.5]} 62. Re6 {[%clk 0:00:11.4]} 62... Nd5 {[%clk 0:00:07.5]} 63. Rd6
{[%clk 0:00:07.3]} 63... Nf4 {[%clk 0:00:07.7]} 64. Kf6 {[%clk 0:00:06.9]} 64...
Nh5+ {[%clk 0:00:07.6]} 65. Kg5 {[%clk 0:00:06.8]} 65... Ng3 {[%clk 0:00:09.5]}
66. Rd7+ {[%clk 0:00:05.2]} 66... Kg8 {[%clk 0:00:10.5]} 67. Kg6 {[%clk
0:00:07]} 67... Kf8 {[%clk 0:00:10.5]} 68. h7 {[%clk 0:00:06.7]} 68... Ne4
{[%clk 0:00:11.9]} 69. h8=Q# {[%clk 0:00:05.7]} 1-0

[Event "GrandPrix_29.05"]
[Site "Chess.com"]
[Date "2020.05.29"]
[Round "2"]
[White "Pultis"]
[Black "gygygygygyggygygygy"]
[Result "1-0"]
[WhiteElo "2257"]
[BlackElo "2036"]
[TimeControl "600+2"]
[EndTime "9:59:17 PDT"]
[Termination "Pultis won by resignation"]

1. d4 {[%clk 0:10:01.9]} 1... Nf6 {[%clk 0:09:45.4]} 2. Nf3 {[%clk 0:09:52.5]}
2... e6 {[%clk 0:09:35.5]} 3. Bg5 {[%clk 0:09:45.2]} 3... c5 {[%clk 0:09:31]} 4.
e3 {[%clk 0:09:26.3]} 4... Qb6 {[%clk 0:09:27.1]} 5. Nc3 {[%clk 0:09:08.6]} 5...
cxd4 {[%clk 0:09:04.9]} 6. exd4 {[%clk 0:08:58]} 6... Qxb2 {[%clk 0:08:50.9]} 7.
Nb5 {[%clk 0:08:53.9]} 7... Qb4+ {[%clk 0:08:49]} 8. Bd2 {[%clk 0:08:49.2]} 8...
Qe7 {[%clk 0:07:27.3]} 9. Nc7+ {[%clk 0:08:48.8]} 9... Kd8 {[%clk 0:07:28.8]}
10. Nxa8 {[%clk 0:08:49.3]} 10... b6 {[%clk 0:07:27.5]} 11. Qb1 {[%clk
0:07:01.1]} 11... Qd6 {[%clk 0:07:08.8]} 12. Ne5 {[%clk 0:06:52.9]} 12... Ke8
{[%clk 0:07:04.9]} 13. Be2 {[%clk 0:05:18.2]} 13... Bb7 {[%clk 0:06:58.7]} 14.
Bf3 {[%clk 0:05:18.5]} 14... Bxf3 {[%clk 0:06:38.5]} 15. gxf3 {[%clk 0:05:11.6]}
15... Nc6 {[%clk 0:05:32.1]} 16. Bf4 {[%clk 0:04:31.3]} 16... Qxd4 {[%clk
0:05:09.2]} 17. Nc7+ {[%clk 0:04:25.4]} 17... Kd8 {[%clk 0:04:48.9]} 18. Nxc6+
{[%clk 0:03:24.9]} 18... dxc6 {[%clk 0:04:43.6]} 19. Qd1 {[%clk 0:03:26.8]}
19... Bb4+ {[%clk 0:04:22.9]} 20. Kf1 {[%clk 0:03:27.9]} 20... Qxd1+ {[%clk
0:03:50.7]} 21. Rxd1+ {[%clk 0:03:29.8]} 21... Kc8 {[%clk 0:03:51.9]} 22. Na6
{[%clk 0:03:31.3]} 22... Be7 {[%clk 0:03:42.6]} 23. Nb8 {[%clk 0:03:16.8]} 23...
Kb7 {[%clk 0:03:23.5]} 24. Nd7 {[%clk 0:03:17.4]} 24... Rd8 {[%clk 0:03:22.1]}
25. Nc5+ {[%clk 0:02:29.8]} 25... bxc5 {[%clk 0:03:21.5]} 26. Rxd8 {[%clk
0:02:31.7]} 26... Bxd8 {[%clk 0:03:21.9]} 27. c4 {[%clk 0:02:23.5]} 27... Nd7
{[%clk 0:02:48]} 28. Ke2 {[%clk 0:02:19.4]} 28... Be7 {[%clk 0:02:22.9]} 29. Kd3
{[%clk 0:01:46.1]} 29... Nb6 {[%clk 0:01:57.2]} 30. Kc3 {[%clk 0:01:44.9]} 30...
Bf6+ {[%clk 0:01:55.4]} 31. Kb3 {[%clk 0:01:44.2]} 31... Nd7 {[%clk 0:01:19.5]}
32. Rd1 {[%clk 0:01:43.9]} 32... Kc8 {[%clk 0:01:16.1]} 33. Be3 {[%clk
0:01:41.3]} 33... Be5 {[%clk 0:01:14.7]} 34. h3 {[%clk 0:01:37.2]} 34... f5
{[%clk 0:01:13.7]} 35. f4 {[%clk 0:01:18.6]} 35... Bc7 {[%clk 0:01:07.8]} 36.
Rg1 {[%clk 0:01:14]} 36... g6 {[%clk 0:01:07.7]} 37. h4 {[%clk 0:00:53.4]} 37...
Bd6 {[%clk 0:00:56.6]} 38. h5 {[%clk 0:00:53]} 38... Nf8 {[%clk 0:00:56.7]} 39.
hxg6 {[%clk 0:00:50]} 39... Nxg6 {[%clk 0:00:57.1]} 40. Rh1 {[%clk 0:00:50.2]}
40... Nf8 {[%clk 0:00:56.1]} 41. Kc3 {[%clk 0:00:45.2]} 41... Kd7 {[%clk
0:00:55]} 42. Kd3 {[%clk 0:00:46]} 42... Ke7 {[%clk 0:00:49.3]} 43. Rb1 {[%clk
0:00:46.6]} 43... Nd7 {[%clk 0:00:41.6]} 44. Rb7 {[%clk 0:00:46.5]} 44... h5
{[%clk 0:00:43.1]} 45. Rxa7 {[%clk 0:00:45.8]} 45... h4 {[%clk 0:00:44.2]} 46.
Ke2 {[%clk 0:00:46.9]} 46... Bb8 {[%clk 0:00:44.6]} 47. Bxc5+ {[%clk 0:00:42]}
47... Kd8 {[%clk 0:00:44.5]} 48. Ra8 {[%clk 0:00:36.8]} 48... Kc7 {[%clk
0:00:44.1]} 49. Be3 {[%clk 0:00:32.9]} 49... Kb7 {[%clk 0:00:44.6]} 50. Ra3
{[%clk 0:00:34.1]} 50... c5 {[%clk 0:00:38.7]} 51. Rb3+ {[%clk 0:00:33.5]} 51...
Kc6 {[%clk 0:00:39.7]} 52. Rb1 {[%clk 0:00:30.5]} 52... Bc7 {[%clk 0:00:38]} 53.
Rh1 {[%clk 0:00:30.7]} 53... Bd8 {[%clk 0:00:38.9]} 54. f3 {[%clk 0:00:12.3]}
54... Nb6 {[%clk 0:00:38.8]} 55. Kd3 {[%clk 0:00:13.1]} 55... Na4 {[%clk
0:00:38.8]} 56. Kc2 {[%clk 0:00:13.2]} 56... Bf6 {[%clk 0:00:30.6]} 57. Bf2
{[%clk 0:00:12.7]} 57... Nb2 {[%clk 0:00:19]} 58. Bxh4 {[%clk 0:00:14]} 58...
Bxh4 {[%clk 0:00:19.3]} 59. Kxb2 {[%clk 0:00:15.1]} 59... Bg3 {[%clk 0:00:17.2]}
60. Kc2 {[%clk 0:00:15]} 60... Bxf4 {[%clk 0:00:17.7]} 61. Rb1 {[%clk
0:00:16.9]} 61... Bc7 {[%clk 0:00:17.8]} 62. a4 {[%clk 0:00:16]} 62... Ba5
{[%clk 0:00:18.2]} 63. Rb5 {[%clk 0:00:16.9]} 63... Bb6 {[%clk 0:00:16.8]} 64.
a5 {[%clk 0:00:17.4]} 64... Bc7 {[%clk 0:00:06.8]} 65. a6 {[%clk 0:00:19.3]}
65... Bb6 {[%clk 0:00:08.2]} 66. f4 {[%clk 0:00:15.7]} 66... Kc7 {[%clk
0:00:07.4]} 67. Kd3 {[%clk 0:00:13.8]} 67... Kc6 {[%clk 0:00:08.5]} 68. Ke2
{[%clk 0:00:14.6]} 68... Kc7 {[%clk 0:00:09.4]} 69. Kf3 {[%clk 0:00:15.8]} 69...
Kc6 {[%clk 0:00:10.1]} 70. Kg2 {[%clk 0:00:17.2]} 70... Kc7 {[%clk 0:00:05.4]}
71. Kh3 {[%clk 0:00:18.4]} 71... Kc6 {[%clk 0:00:05.7]} 72. Kh4 {[%clk
0:00:19.8]} 72... Kc7 {[%clk 0:00:04.3]} 73. Kg5 {[%clk 0:00:20.7]} 73... Kc6
{[%clk 0:00:03.5]} 74. Kf6 {[%clk 0:00:21.9]} 1-0